[Event "SWE-ch Masters 2018"]
[Site "Ronneby"]
[Date "2018.07.08"]
[Round "9"]
[White "Nordahl, Nils"]
[Black "Lindvall, Johannes"]
[Result "1/2-1/2"]
[ECO "C91"]
[WhiteElo "1839"]
[BlackElo "2010"]
[Annotator "NA"]
[PlyCount "36"]
[EventDate "2018.06.30"]
[EventType "tourn"]
[EventCountry "SWE"]
[SourceTitle "playchess.com"]
[Source "ChessBase"]
[SourceQuality "1"]
[TimeControl "40/5400+30:1800+30"]

1. e4 {[%emt 0:00:00]} e5 {[%emt 0:00:00]} 2. Nf3 {[%emt 0:00:00]} Nc6 {[%emt 0:00:00]} 3. Bb5 {[%emt 0:00:00]} a6 {[%emt 0:00:00]} 4. Ba4 {[%emt 0:00:00]} Nf6 {[%emt 0:00:05]} 5. O-O {[%emt 0:00:05]} Be7 {[%emt 0:00:06]} 6. Re1 {[%emt 0:00:09]} b5 {[%emt 0:00:07]} 7. Bb3 {[%emt 0:00:06]} d6 {[%emt 0:00:30]} 8. c3 {[%emt 0:00:12]} O-O {[%emt 0:00:06]} 9. d4 {[%emt 0:00:12]} Bg4 {[%emt 0:02:41]} 10. d5 {[%emt 0:01:37]} Na5 {[%emt 0:08:43]} 11. Bc2 {[%emt 0:00:12]} c6 {[%emt 0:00:54]} 12. dxc6 {[%emt 0:03:34] LiveBook: 73 Games} Nxc6 {[%emt 0:06:45]} 13. Nbd2 {[%emt 0:02:28]} h6 {[%emt 0:04:43]} 14. Nf1 {[%emt 0:01:14]} Re8 {[%emt 0:04:22]} 15. Ng3 {[%emt 0:05:11]} Qc7 {[%emt 0:03:17]} 16. h3 {[%emt 0:00:33]} Be6 {[%emt 0:00:14]} 17. Qe2 $11 {[%emt 0:08:03]} Bf8 {[%emt 0:06:09]} 18. Bb3 {[%emt 0:03:47]} d5 {[%emt 0:07:32]} 1/2-1/2